[Event "XIX Najdorf Memorial 2019"]
[Site "Warsaw"]
[Date "2019.07.09"]
[Round "4.13"]
[White "Dzida, Kamil"]
[Black "Fus, Jakub"]
[Result "1-0"]
[ECO "B69"]
[WhiteElo "1987"]
[BlackElo "2341"]
[Annotator "NA"]
[PlyCount "131"]
[EventDate "2019.07.06"]
[EventType "swiss"]
[EventCountry "POL"]
[SourceTitle "playchess.com"]
[Source "ChessBase"]
[SourceQuality "1"]
[TimeControl "40/5400+30:1800+30"]

1. e4 {[%emt 0:00:00]} c5 {[%emt 0:00:00]} 2. Nf3 {[%emt 0:00:00]} d6 {[%emt 0:00:00]} 3. d4 {[%emt 0:00:45]} cxd4 {[%emt 0:00:09]} 4. Nxd4 {[%emt 0:00:07]} Nf6 {[%emt 0:00:15]} 5. Nc3 {[%emt 0:00:12]} Nc6 {[%emt 0:00:09]} 6. Bg5 {[%emt 0:00:09]} e6 {[%emt 0:00:18]} 7. Qd2 {[%emt 0:00:06]} a6 {[%emt 0:00:14]} 8. O-O-O {[%emt 0:00:09]} Bd7 {[%emt 0:00:10]} 9. f4 {[%emt 0:00:50]} Be7 {[%emt 0:00:09]} 10. Nf3 {[%emt 0:02:28]} b5 {[%emt 0:00:18]} 11. Bxf6 {[%emt 0:01:43]} gxf6 {[%emt 0:00:12]} 12. Bd3 {[%emt 0:00:40]} b4 {[%emt 0:01:47]} 13. Ne2 {[%emt 0:00:37]} Qb6 {[%emt 0:00:34]} 14. Kb1 {[%emt 0:03:14]} a5 {[%emt 0:01:28]} 15. f5 {[%emt 0:02:43]} Qc5 {[%emt 0:11:13]} 16. Nf4 {[%emt 0:11:04]} a4 {[%emt 0:06:08]} 17. Rhe1 {[%emt 0:10:03]} a3 {[%emt 0:06:40]} 18. b3 {[%emt 0:00:12]} Ne5 {[%emt 0:01:24]} 19. Be2 {[%emt 0:02:11]} Rb8 {[%emt 0:15:42]} 20. Nd4 {[%emt 0:11:52]} Qc8 {[%emt 0:09:27]} 21. Bh5 {[%emt 0:12:50]} exf5 {[%emt 0:08:22]} 22. exf5 {[%emt 0:01:02]} Bxf5 {[%emt 0:01:25]} 23. Nd5 {[%emt 0:00:52]} Bd8 {[%emt 0:04:05]} 24. Qh6 {[%emt 0:12:24]} Bg6 {[%emt 0:04:50]} 25. Bf3 {[%emt 0:10:50]} Rb5 {[%emt 0:05:36]} 26. Re3 {[%emt 0:11:55]} Rxd5 {[%emt 0:06:36]} 27. Bxd5 {[%emt 0:00:02]} Bb6 {[%emt 0:00:05]} 28. Qg7 {[%emt 0:01:28]} Rf8 {[%emt 0:06:16]} 29. Bc6+ {[%emt 0:00:19]} Ke7 {[%emt 0:00:07]} 30. Rf1 {[%emt 0:00:11]} Rd8 {[%emt 0:01:48]} 31. Qxf6+ {[%emt 0:00:32]} Kf8 {[%emt 0:00:02]} 32. Qh8+ {[%emt 0:01:41]} Ke7 {[%emt 0:00:03]} 33. Rxe5+ {[%emt 0:01:02]} dxe5 {[%emt 0:00:04]} 34. Qxe5+ {[%emt 0:00:27]} Kf8 {[%emt 0:00:05]} 35. Qh8+ {[%emt 0:00:30]} Ke7 {[%emt 0:00:04]} 36. Qf6+ {[%emt 0:00:04]} Kf8 {[%emt 0:00:04]} 37. Ne6+ {[%emt 0:00:04]} Qxe6 {[%emt 0:00:09]} 38. Qxe6 {[%emt 0:00:03]} Rd1+ {[%emt 0:00:12]} 39. Rxd1 {[%emt 0:00:04]} fxe6 {[%emt 0:00:04]} 40. Re1 {[%emt 0:00:00]} Ke7 {[%emt 0:00:00]} 41. Be4 {[%emt 0:01:00]} Bf7 {[%emt 0:00:23]} 42. Bxh7 {[%emt 0:00:30]} Bd4 {[%emt 0:00:06]} 43. Bd3 {[%emt 0:00:36]} e5 {[%emt 0:00:15]} 44. Kc1 {[%emt 0:00:15]} Bc3 {[%emt 0:00:10]} 45. Re4 {[%emt 0:00:40]} Bd5 {[%emt 0:00:43]} 46. Rg4 {[%emt 0:00:10]} Be6 {[%emt 0:00:09]} 47. Rg7+ {[%emt 0:00:10]} Kf8 {[%emt 0:00:19]} 48. Rg5 {[%emt 0:01:32]} Bd5 {[%emt 0:00:47]} 49. Kd1 {[%emt 0:00:33]} Ke7 {[%emt 0:00:20]} 50. Ke2 {[%emt 0:00:25]} Kf6 {[%emt 0:00:08]} 51. Rg6+ {[%emt 0:00:32]} Kf7 {[%emt 0:00:03]} 52. Rg4 {[%emt 0:00:08]} Kf6 {[%emt 0:00:28]} 53. h4 {[%emt 0:00:36]} Bf7 {[%emt 0:00:13]} 54. Rg5 {[%emt 0:00:58]} Bd5 {[%emt 0:00:33]} 55. g4 {[%emt 0:00:21]} Bb7 {[%emt 0:00:31]} 56. Rg6+ {[%emt 0:00:16]} Kf7 {[%emt 0:00:04]} 57. Rb6 {[%emt 0:00:08]} Bh1 {[%emt 0:00:23]} 58. g5 {[%emt 0:01:00]} e4 {[%emt 0:00:11]} 59. Bc4+ {[%emt 0:00:06]} Kg7 {[%emt 0:00:14]} 60. h5 {[%emt 0:00:10]} Bf3+ {[%emt 0:00:12]} 61. Ke3 {[%emt 0:00:24]} Bxh5 {[%emt 0:00:17]} 62. Kxe4 {[%emt 0:00:43]} Bg6+ {[%emt 0:00:13]} 63. Ke3 {[%emt 0:00:07]} Bxc2 {[%emt 0:00:18]} 64. Rb7+ {[%emt 0:00:03]} Kh8 {[%emt 0:03:54]} 65. g6 {[%emt 0:01:57]} Bxg6 {[%emt 0:02:09]} 66. Bd3 {[%emt 0:00:04]} 1-0

[Event "XIX Najdorf Memorial 2019"]
[Site "Warsaw"]
[Date "2019.07.09"]
[Round "4.14"]
[White "Klekowski, Maciej"]
[Black "Sanz Wawer, Daniel"]
[Result "1/2-1/2"]
[ECO "A16"]
[WhiteElo "2482"]
[BlackElo "2154"]
[Annotator "ChessBase"]
[PlyCount "120"]
[EventDate "2019.07.06"]
[EventType "swiss"]
[EventCountry "POL"]
[SourceTitle "playchess.com"]
[Source "ChessBase"]
[SourceQuality "1"]
[TimeControl "40/5400+30:1800+30"]

1. c4 {[%emt 0:00:00]} Nf6 {[%emt 0:00:00]} 2. Nc3 {[%emt 0:00:00]} d5 {[%emt 0:00:13]} 3. cxd5 {[%emt 0:00:37]} Nxd5 {[%emt 0:00:06]} 4. g3 {[%emt 0:00:11]} g6 {[%emt 0:00:29]} 5. Bg2 {[%emt 0:00:04]} Nb6 {[%emt 0:00:28]} 6. d3 {[%emt 0:07:10]} Bg7 {[%emt 0:00:20]} 7. Be3 {[%emt 0:00:53]} Nc6 {[%emt 0:00:53]} 8. Qd2 {[%emt 0:01:37]} Nd4 {[%emt 0:09:51]} 9. Rc1 {[%emt 0:01:50]} c6 {[%emt 0:00:49]} 10. Bh6 {[%emt 0:00:47]} Bxh6 {[%emt 0:02:23]} 11. Qxh6 {[%emt 0:00:05]} Nf5 {[%emt 0:00:30]} 12. Qd2 {[%emt 0:00:26]} Be6 {[%emt 0:10:13]} 13. h4 {[%emt 0:10:20]} h5 {[%emt 0:01:22]} 14. Nh3 {[%emt 0:00:45]} f6 {[%emt 0:01:27]} 15. Ne4 {[%emt 0:08:41]} Nd7 {[%emt 0:06:11]} 16. Nf4 {[%emt 0:03:55]} Bf7 {[%emt 0:00:29]} 17. Bh3 {[%emt 0:00:30]} Qb6 {[%emt 0:04:37]} 18. Qc3 {[%emt 0:12:28]} O-O-O {[%emt 0:13:13]} 19. b4 {[%emt 0:03:25]} Kb8 {[%emt 0:03:07]} 20. O-O {[%emt 0:05:15]} Nd4 {[%emt 0:06:45]} 21. e3 {[%emt 0:04:14]} e5 {[%emt 0:06:53]} 22. exd4 {[%emt 0:02:21]} exf4 {[%emt 0:00:08]} 23. Bxd7 {[%emt 0:00:57]} Rxd7 {[%emt 0:00:06]} 24. Nxf6 {[%emt 0:00:47]} Rd6 {[%emt 0:01:13]} 25. d5 {[%emt 0:00:28]} Qd8 {[%emt 0:01:02]} 26. Ne4 {[%emt 0:01:40]} Rxd5 {[%emt 0:00:13]} 27. b5 {[%emt 0:05:35]} cxb5 {[%emt 0:04:33]} 28. Ng5 {[%emt 0:03:27]} Rf8 {[%emt 0:03:09]} 29. Rfe1 {[%emt 0:05:13]} fxg3 {[%emt 0:04:17]} 30. fxg3 {[%emt 0:00:18]} Qb6+ {[%emt 0:01:44]} 31. Kg2 {[%emt 0:02:01]} Rxg5 {[%emt 0:11:08]} 32. hxg5 {[%emt 0:00:30]} Bd5+ {[%emt 0:00:03]} 33. Re4 {[%emt 0:00:21]} Qf2+ {[%emt 0:00:43]} 34. Kh3 {[%emt 0:00:29]} Qf5+ {[%emt 0:00:39]} 35. Kh2 {[%emt 0:00:06]} Qf2+ {[%emt 0:03:42]} 36. Kh3 {[%emt 0:00:04]} Qf5+ {[%emt 0:00:17]} 37. Kh2 {[%emt 0:00:04]} Bxe4 {[%emt 0:01:55]} 38. Qc7+ {[%emt 0:00:24]} Ka8 {[%emt 0:00:07]} 39. dxe4 {[%emt 0:00:02]} Qg4 {[%emt 0:01:49]} 40. Qd6 {[%emt 0:00:00]} Qe2+ {[%emt 0:00:00]} 41. Kh3 {[%emt 0:00:06]} Qg4+ {[%emt 0:04:22]} 42. Kh2 {[%emt 0:00:04]} Rb8 {[%emt 0:04:02]} 43. Qf4 {[%emt 0:03:18]} Qe2+ {[%emt 0:01:15]} 44. Kh3 {[%emt 0:00:13]} Qxa2 45. Qf6 {[%emt 0:00:05]} Qe2 {[%emt 0:04:33]} 46. Qd4 {[%emt 0:03:02]} Qg4+ {[%emt 0:00:42]} 47. Kh2 {[%emt 0:00:04]} Qe6 {[%emt 0:03:59]} 48. e5 {[%emt 0:00:58]} Re8 {[%emt 0:01:18]} 49. Rc7 {[%emt 0:00:59]} Kb8 {[%emt 0:01:55]} 50. Rd7 {[%emt 0:00:10]} Rc8 {[%emt 0:01:52]} 51. Rd8 {[%emt 0:00:29]} Qa2+ {[%emt 0:01:08]} 52. Kh3 {[%emt 0:00:03]} Qe6+ {[%emt 0:00:09]} 53. Kh2 {[%emt 0:00:02]} a5 {[%emt 0:02:39]} 54. Rxc8+ {[%emt 0:00:19]} Kxc8 {[%emt 0:01:03]} 55. Qc5+ {[%emt 0:00:03]} Qc6 {[%emt 0:01:48]} 56. Qf8+ {[%emt 0:00:07]} Kc7 {[%emt 0:02:03]} 57. Qf7+ {[%emt 0:00:14]} Kd8 {[%emt 0:01:33]} 58. e6 {[%emt 0:00:15]} Qe8 {[%emt 0:00:33]} 59. Qf6+ {[%emt 0:00:09]} Kc7 {[%emt 0:00:49]} 60. Qf7+ {[%emt 0:01:19]} Kd8 1/2-1/2

[Event "XIX Najdorf Memorial 2019"]
[Site "Warsaw"]
[Date "2019.07.09"]
[Round "4.14"]
[White "Baum, Jonasz"]
[Black "Ali Marandi, Cemil Can"]
[Result "1-0"]
[ECO "A81"]
[WhiteElo "2308"]
[BlackElo "2527"]
[Annotator "ChessBase"]
[PlyCount "77"]
[EventDate "2019.07.06"]
[EventType "swiss"]
[EventCountry "POL"]
[SourceTitle "playchess.com"]
[Source "ChessBase"]
[SourceQuality "1"]
[TimeControl "40/5400+30:1800+30"]

1. d4 {[%emt 0:00:00]} f5 {[%emt 0:00:12]} 2. g3 {[%emt 0:00:00]} Nf6 {[%emt 0:00:26]} 3. Bg2 {[%emt 0:00:25]} g6 {[%emt 0:00:23]} 4. Nh3 {[%emt 0:00:19]} Bg7 {[%emt 0:00:21]} 5. O-O {[%emt 0:00:05]} O-O {[%emt 0:02:38]} 6. c4 {[%emt 0:00:37]} Nc6 {[%emt 0:01:23]} 7. Nc3 {[%emt 0:04:10]} d6 {[%emt 0:02:58]} 8. d5 {[%emt 0:01:38]} Ne5 {[%emt 0:00:07]} 9. Qb3 {[%emt 0:03:00]} Kh8 {[%emt 0:07:17]} 10. Nf4 {[%emt 0:00:45]} c5 {[%emt 0:03:14]} 11. h4 {[%emt 0:04:35]} Rb8 {[%emt 0:03:45]} 12. Bd2 {[%emt 0:02:43]} a6 {[%emt 0:02:07]} 13. a4 {[%emt 0:00:11]} Bd7 {[%emt 0:04:01]} 14. Qa2 {[%emt 0:07:50]} Ne8 {[%emt 0:07:27]} 15. Rab1 {[%emt 0:06:54]} b6 {[%emt 0:10:38]} 16. b3 {[%emt 0:04:10]} Nc7 {[%emt 0:00:15]} 17. a5 {[%emt 0:02:48]} b5 {[%emt 0:01:20]} 18. cxb5 {[%emt 0:01:34]} axb5 {[%emt 0:00:34]} 19. Ne6 {[%emt 0:11:52]} Nxe6 {[%emt 0:03:02]} 20. dxe6 {[%emt 0:02:53]} Bc6 {[%emt 0:00:05]} 21. Nd5 {[%emt 0:01:08]} Ra8 {[%emt 0:07:37]} 22. b4 {[%emt 0:04:46]} cxb4 {[%emt 0:03:59]} 23. Bxb4 {[%emt 0:01:04]} Ra7 {[%emt 0:02:51]} 24. Bc3 {[%emt 0:04:35]} Qc8 {[%emt 0:04:23]} 25. Bxe5 {[%emt 0:16:23]} dxe5 {[%emt 0:01:29]} 26. Nb6 {[%emt 0:01:02]} Qb7 {[%emt 0:01:09]} 27. Bxc6 {[%emt 0:00:08]} Qxc6 {[%emt 0:00:25]} 28. Rfc1 {[%emt 0:00:36]} Qe4 {[%emt 0:01:39]} 29. Rxb5 {[%emt 0:05:05]} Qg4 {[%emt 0:06:03]} 30. Nd7 {[%emt 0:03:20]} f4 {[%emt 0:00:02]} 31. Qc4 {[%emt 0:04:57]} Rxd7 {[%emt 0:00:39]} 32. exd7 {[%emt 0:00:06]} Qxd7 {[%emt 0:00:04]} 33. Qd3 {[%emt 0:05:46]} Qa7 {[%emt 0:05:02]} 34. gxf4 {[%emt 0:00:53]} exf4 {[%emt 0:00:19]} 35. Rbc5 {[%emt 0:00:17]} e5 {[%emt 0:03:32]} 36. Rc8 {[%emt 0:00:10]} Qe7 {[%emt 0:03:11]} 37. Rxf8+ {[%emt 0:00:15]} Bxf8 {[%emt 0:00:01]} 38. Rc8 {[%emt 0:00:55]} Kg7 {[%emt 0:00:06]} 39. Qd8 {[%emt 0:00:12]} 1-0

[Event "XIX Najdorf Memorial 2019"]
[Site "Warsaw"]
[Date "2019.07.09"]
[Round "4.15"]
[White "Deszczynski, Adam"]
[Black "Gukesh D"]
[Result "0-1"]
[ECO "B46"]
[WhiteElo "2304"]
[BlackElo "2520"]
[Annotator "ChessBase"]
[PlyCount "80"]
[EventDate "2019.07.06"]
[EventType "swiss"]
[EventCountry "POL"]
[SourceTitle "playchess.com"]
[Source "ChessBase"]
[SourceQuality "1"]
[TimeControl "40/5400+30:1800+30"]

1. e4 {[%emt 0:00:00]} c5 {[%emt 0:00:04]} 2. Nf3 {[%emt 0:01:01]} e6 {[%emt 0:00:16]} 3. Nc3 {[%emt 0:03:29]} Nc6 {[%emt 0:00:28]} 4. d4 {[%emt 0:02:32]} cxd4 {[%emt 0:00:10]} 5. Nxd4 {[%emt 0:00:07]} a6 {[%emt 0:00:11]} 6. g3 {[%emt 0:07:16]} d6 {[%emt 0:02:09]} 7. Bg2 {[%emt 0:00:27]} Bd7 {[%emt 0:00:04]} 8. O-O {[%emt 0:01:47]} Nf6 {[%emt 0:00:05]} 9. Nxc6 {[%emt 0:07:16]} Bxc6 {[%emt 0:07:59]} 10. a4 {[%emt 0:00:48]} Be7 {[%emt 0:00:47]} 11. a5 {[%emt 0:02:10]} O-O {[%emt 0:05:13]} 12. Be3 {[%emt 0:01:38]} Rc8 {[%emt 0:08:16]} 13. Re1 {[%emt 0:11:50]} Nd7 {[%emt 0:04:21]} 14. Na4 {[%emt 0:02:59]} f5 {[%emt 0:18:46]} 15. Nb6 {[%emt 0:11:00]} Nxb6 {[%emt 0:01:36]} 16. Bxb6 {[%emt 0:00:10]} Qd7 {[%emt 0:00:25]} 17. exf5 {[%emt 0:04:07]} Bxg2 {[%emt 0:00:28]} 18. Kxg2 {[%emt 0:00:07]} Rxf5 {[%emt 0:00:02]} 19. c3 {[%emt 0:00:53]} Bd8 {[%emt 0:03:08]} 20. Bxd8 {[%emt 0:09:39]} Rxd8 {[%emt 0:00:10]} 21. Qb3 {[%emt 0:05:27]} d5 {[%emt 0:10:57]} 22. Re2 {[%emt 0:09:28]} Rdf8 {[%emt 0:09:11]} 23. Rd1 {[%emt 0:06:23]} Qf7 {[%emt 0:01:25]} 24. Rdd2 {[%emt 0:00:42]} h5 {[%emt 0:05:54]} 25. c4 {[%emt 0:06:00]} d4 {[%emt 0:02:38]} 26. Qd3 {[%emt 0:02:45]} e5 {[%emt 0:03:14]} 27. Qe4 {[%emt 0:00:57]} Kh8 {[%emt 0:02:37]} 28. b3 {[%emt 0:00:18]} g5 {[%emt 0:07:09]} 29. Qd5 {[%emt 0:01:12]} Qg7 {[%emt 0:00:32]} 30. Re4 {[%emt 0:00:40]} g4 {[%emt 0:00:34]} 31. h3 {[%emt 0:00:43]} Qf6 {[%emt 0:02:34]} 32. Ree2 {[%emt 0:00:08]} gxh3+ {[%emt 0:00:53]} 33. Kxh3 {[%emt 0:00:19]} h4 {[%emt 0:00:59]} 34. Kg2 {[%emt 0:00:28]} hxg3 {[%emt 0:01:07]} 35. fxg3 {[%emt 0:00:03]} Rg8 {[%emt 0:02:07]} 36. Rf2 {[%emt 0:01:06]} Rxg3+ {[%emt 0:00:30]} 37. Kf1 {[%emt 0:01:33]} Rgf3 {[%emt 0:00:22]} 38. Rxf3 {[%emt 0:00:48]} Rxf3+ {[%emt 0:00:01]} 39. Kg2 {[%emt 0:00:36]} Rf5 {[%emt 0:01:04]} 40. Qe4 {[%emt 0:00:00]} Rg5+ {[%emt 0:00:00]} 0-1

[Event "XIX Najdorf Memorial 2019"]
[Site "Warsaw"]
[Date "2019.07.09"]
[Round "4.15"]
[White "Fiedorek, Michal"]
[Black "Jarmula, Lukasz"]
[Result "0-1"]
[ECO "B69"]
[WhiteElo "2241"]
[BlackElo "2480"]
[Annotator "ChessBase"]
[PlyCount "62"]
[EventDate "2019.07.06"]
[EventType "swiss"]
[EventCountry "POL"]
[SourceTitle "playchess.com"]
[Source "ChessBase"]
[SourceQuality "1"]
[TimeControl "40/5400+30:1800+30"]

1. e4 c5 2. Nf3 d6 3. d4 cxd4 4. Nxd4 Nf6 5. Nc3 Nc6 6. Bg5 e6 7. Qd2 a6 8. O-O-O Bd7 9. f4 Be7 10. Nf3 b5 11. Bxf6 gxf6 12. f5 Qb6 13. Kb1 O-O-O 14. g3 Kb8 15. fxe6 fxe6 16. Bh3 Na5 17. Nd4 b4 18. Nce2 e5 19. Bxd7 Rxd7 20. Nf5 Nc4 21. Qd5 Rc8 22. g4 Bf8 23. Neg3 Qf2 24. Qd3 Rdc7 25. Qe2 Qxe2 26. Nxe2 Nxb2 27. Kxb2 Rxc2+ 28. Kb3 Rxe2 29. Ng3 Rec2 30. Rd3 a5 31. h4 R2c3+ 0-1

[Event "XIX Najdorf Memorial 2019"]
[Site "Warsaw"]
[Date "2019.07.09"]
[Round "4.16"]
[White "Czerw, Dawid"]
[Black "Cieslak, Wiktoria"]
[Result "1/2-1/2"]
[ECO "E46"]
[WhiteElo "2326"]
[BlackElo "2001"]
[Annotator "NA"]
[PlyCount "81"]
[EventDate "2019.07.06"]
[EventType "swiss"]
[EventCountry "POL"]
[SourceTitle "playchess.com"]
[Source "ChessBase"]
[SourceQuality "1"]
[TimeControl "40/5400+30:1800+30"]

1. d4 {[%emt 0:05:25]} Nf6 {[%emt 0:00:00]} 2. c4 {[%emt 0:00:04]} e6 {[%emt 0:00:00]} 3. Nc3 {[%emt 0:00:05]} Bb4 {[%emt 0:00:00]} 4. e3 {[%emt 0:00:04]} O-O {[%emt 0:00:39]} 5. Nge2 {[%emt 0:00:37]} d5 {[%emt 0:02:19]} 6. a3 {[%emt 0:00:38]} Be7 {[%emt 0:00:14]} 7. cxd5 {[%emt 0:00:54]} exd5 {[%emt 0:00:05]} 8. g3 {[%emt 0:00:07]} c6 {[%emt 0:00:35]} 9. Bg2 {[%emt 0:00:23]} Re8 {[%emt 0:01:40]} 10. Qc2 {[%emt 0:07:06]} Nbd7 {[%emt 0:01:38]} 11. O-O {[%emt 0:00:24]} Nf8 {[%emt 0:00:35]} 12. b4 {[%emt 0:08:57]} Be6 {[%emt 0:03:08]} 13. f3 {[%emt 0:02:35]} Qd7 {[%emt 0:05:49]} 14. Rf2 {[%emt 0:18:12]} b6 {[%emt 0:03:18]} 15. Bd2 {[%emt 0:07:03]} Rec8 {[%emt 0:03:40]} 16. Na4 {[%emt 0:02:40]} Rc7 {[%emt 0:02:45]} 17. Rc1 {[%emt 0:01:23]} Rac8 {[%emt 0:00:12]} 18. Qd1 {[%emt 0:04:40]} h5 {[%emt 0:04:06]} 19. Nf4 {[%emt 0:05:17]} Bf5 {[%emt 0:01:05]} 20. Bf1 {[%emt 0:06:11]} Ne6 {[%emt 0:02:10]} 21. Nd3 {[%emt 0:00:54]} Ng5 {[%emt 0:01:41]} 22. Ne5 {[%emt 0:08:12]} Qe6 {[%emt 0:01:45]} 23. g4 {[%emt 0:10:43]} hxg4 {[%emt 0:00:14]} 24. e4 {[%emt 0:00:07]} dxe4 {[%emt 0:01:47]} 25. Bxg5 {[%emt 0:00:59]} gxf3 {[%emt 0:00:18]} 26. Nc3 {[%emt 0:02:25]} Nd5 {[%emt 0:01:27]} 27. Bxe7 {[%emt 0:02:14]} Qxe7 {[%emt 0:01:09]} 28. Qe1 {[%emt 0:03:57]} Nxc3 {[%emt 0:03:02]} 29. Rxc3 {[%emt 0:00:24]} c5 {[%emt 0:00:08]} 30. bxc5 {[%emt 0:00:46]} bxc5 {[%emt 0:00:03]} 31. Nxf3 {[%emt 0:01:15]} exf3 {[%emt 0:00:47]} 32. Qxe7 {[%emt 0:00:08]} Rxe7 {[%emt 0:00:06]} 33. Rcxf3 {[%emt 0:01:02]} Be4 {[%emt 0:00:35]} 34. Rc3 {[%emt 0:00:04]} Rec7 {[%emt 0:02:33]} 35. Bc4 {[%emt 0:00:46]} Rd8 {[%emt 0:03:33]} 36. dxc5 {[%emt 0:00:29]} Rd1+ {[%emt 0:00:16]} 37. Rf1 {[%emt 0:00:29]} Rxf1+ {[%emt 0:00:34]} 38. Kxf1 {[%emt 0:00:11]} Kf8 {[%emt 0:00:10]} 39. Bb3 {[%emt 0:00:37]} f5 {[%emt 0:00:27]} 40. Ke2 {[%emt 0:00:00]} Ke7 {[%emt 0:00:00]} 41. h4 {[%emt 0:17:10]} 1/2-1/2

[Event "XIX Najdorf Memorial 2019"]
[Site "Warsaw"]
[Date "2019.07.09"]
[Round "4.17"]
[White "Lapaj, Mateusz"]
[Black "Paszewski, Mateusz"]
[Result "0-1"]
[ECO "B12"]
[WhiteElo "2223"]
[BlackElo "2324"]
[Annotator "NA"]
[PlyCount "78"]
[EventDate "2019.07.06"]
[EventType "swiss"]
[EventCountry "POL"]
[SourceTitle "playchess.com"]
[Source "ChessBase"]
[SourceQuality "1"]
[TimeControl "40/5400+30:1800+30"]

1. e4 {[%emt 0:07:29]} c6 {[%emt 0:00:00]} 2. d4 {[%emt 0:00:18]} d5 {[%emt 0:00:00]} 3. e5 {[%emt 0:00:05]} Bf5 {[%emt 0:00:00]} 4. Nf3 {[%emt 0:00:13]} e6 {[%emt 0:00:00]} 5. Be2 {[%emt 0:00:05]} Nd7 {[%emt 0:00:36]} 6. O-O {[%emt 0:00:18]} Ne7 {[%emt 0:00:17]} 7. Nbd2 {[%emt 0:00:10]} h6 {[%emt 0:00:10]} 8. Nb3 {[%emt 0:00:06]} g5 {[%emt 0:00:59]} 9. Ne1 {[%emt 0:00:26]} Qc7 {[%emt 0:00:54]} 10. Nd3 {[%emt 0:00:09]} Bg7 {[%emt 0:00:40]} 11. f4 {[%emt 0:07:52]} gxf4 {[%emt 0:08:34]} 12. Nxf4 {[%emt 0:04:30]} c5 {[%emt 0:07:59]} 13. c3 {[%emt 0:04:12]} O-O-O {[%emt 0:11:37]} 14. Be3 {[%emt 0:08:27]} Rhg8 {[%emt 0:03:35]} 15. Rc1 {[%emt 0:10:49]} c4 {[%emt 0:08:25]} 16. Nd2 {[%emt 0:00:07]} f6 {[%emt 0:00:37]} 17. exf6 {[%emt 0:14:06]} Bxf6 {[%emt 0:00:18]} 18. Qa4 {[%emt 0:07:29]} Kb8 {[%emt 0:12:56]} 19. b3 {[%emt 0:01:15]} Nb6 {[%emt 0:04:03]} 20. Qa3 {[%emt 0:00:58]} Bg5 {[%emt 0:03:59]} 21. Bh5 {[%emt 0:11:19]} Rdf8 {[%emt 0:07:05]} 22. Kh1 {[%emt 0:03:53]} Bh3 {[%emt 0:14:22]} 23. Nxh3 {[%emt 0:13:09]} Bxe3 {[%emt 0:00:06]} 24. Qb2 {[%emt 0:00:06]} Nf5 {[%emt 0:06:51]} 25. Rce1 {[%emt 0:01:18]} Bg5 {[%emt 0:03:34]} 26. Nf3 {[%emt 0:00:55]} Nc8 {[%emt 0:01:33]} 27. Rxe6 {[%emt 0:00:53]} Ncd6 {[%emt 0:00:08]} 28. Nhxg5 {[%emt 0:01:08]} hxg5 {[%emt 0:00:01]} 29. Bg4 {[%emt 0:00:28]} Ne4 {[%emt 0:00:20]} 30. Bxf5 {[%emt 0:00:33]} Rxf5 {[%emt 0:00:01]} 31. Re5 {[%emt 0:00:15]} Rf7 {[%emt 0:02:14]} 32. Kg1 {[%emt 0:00:47]} Rgf8 {[%emt 0:00:30]} 33. bxc4 {[%emt 0:01:06]} g4 {[%emt 0:01:37]} 34. cxd5 {[%emt 0:01:00]} Nd6 {[%emt 0:00:25]} 35. Nd2 {[%emt 0:00:18]} Nc4 {[%emt 0:01:02]} 36. Qb4 {[%emt 0:00:07]} Rxf1+ {[%emt 0:01:19]} 37. Nxf1 {[%emt 0:00:01]} Qf7 {[%emt 0:00:06]} 38. Re8+ {[%emt 0:01:11]} Qxe8 {[%emt 0:00:13]} 39. Qxc4 {[%emt 0:00:04]} Qe1 {[%emt 0:00:04]} 0-1

[Event "XIX Najdorf Memorial 2019"]
[Site "Warsaw"]
[Date "2019.07.09"]
[Round "4.18"]
[White "Malovanyi, Yulian"]
[Black "Kucza, Karol"]
[Result "1/2-1/2"]
[ECO "C24"]
[WhiteElo "2204"]
[BlackElo "2315"]
[Annotator "NA"]
[PlyCount "101"]
[EventDate "2019.07.06"]
[EventType "swiss"]
[EventCountry "POL"]
[SourceTitle "playchess.com"]
[Source "ChessBase"]
[SourceQuality "1"]
[TimeControl "40/5400+30:1800+30"]

1. e4 e5 2. Bc4 Nf6 3. d3 Nc6 4. Nc3 Na5 5. Nge2 Nxc4 6. dxc4 Bc5 7. O-O h6 8. Qd3 d6 9. Be3 Bb6 10. h3 O-O 11. a4 Ba5 12. Rfd1 Qe7 13. Ng3 Bxc3 14. Qxc3 b6 15. a5 Be6 16. b3 Qe8 17. f3 Qc6 18. Qd2 Kh7 19. Ne2 Ng8 20. Nc3 Ne7 21. Ra4 f5 22. Rda1 f4 23. Bf2 g5 24. axb6 axb6 25. Nb5 Rxa4 26. Rxa4 Nc8 27. Qb4 h5 28. Na7 Nxa7 29. Rxa7 Rf7 30. Qb5 Qxb5 31. cxb5 d5 32. exd5 Bxd5 33. c4 Be6 34. c5 bxc5 35. Bxc5 Bxb3 36. b6 cxb6 37. Rxf7+ Bxf7 38. Bxb6 Kg6 39. Kf2 Kf5 40. Bd8 Bd5 41. Be7 g4 42. hxg4+ hxg4 43. fxg4+ Kxg4 44. Ba3 Bxg2 45. Bb2 e4 46. Bc1 Bf3 47. Bd2 Kf5 48. Bc1 Bh5 49. Bd2 e3+ 50. Bxe3 fxe3+ 51. Kxe3 1/2-1/2

[Event "XIX Najdorf Memorial 2019"]
[Site "Warsaw"]
[Date "2019.07.09"]
[Round "4.19"]
[White "Wisniewski, Michal"]
[Black "Marczuk, Dominik"]
[Result "1-0"]
[ECO "A05"]
[WhiteElo "2103"]
[BlackElo "2300"]
[Annotator "NA"]
[PlyCount "169"]
[EventDate "2019.07.06"]
[EventType "swiss"]
[EventCountry "POL"]
[SourceTitle "playchess.com"]
[Source "ChessBase"]
[SourceQuality "1"]
[TimeControl "40/5400+30:1800+30"]

1. Nf3 Nf6 2. c4 g6 3. g3 Bg7 4. Bg2 O-O 5. O-O d6 6. Nc3 Nc6 7. d3 e5 8. Rb1 a5 9. a3 Re8 10. Bg5 h6 11. Bxf6 Bxf6 12. b4 axb4 13. axb4 Bg7 14. b5 Nd4 15. Nxd4 exd4 16. Nd5 Bg4 17. Re1 Ra2 18. Bf3 Bxf3 19. exf3 Rxe1+ 20. Qxe1 Qd7 21. Ra1 Rxa1 22. Qxa1 c6 23. bxc6 bxc6 24. Qa8+ Kh7 25. Nb4 c5 26. Nd5 g5 27. Kg2 Be5 28. Qf8 Bg7 29. Qb8 Be5 30. Nb6 Qf5 31. Qe8 Qe6 32. Qd8 Qf5 33. Nc8 Qe6 34. g4 f5 35. h3 fxg4 36. fxg4 Kg7 37. Ne7 Kf7 38. Nf5 Kg6 39. Qf8 Kh7 40. Kf3 d5 41. Qxc5 dxc4 42. Qxc4 Qd7 43. Qa6 Bg7 44. Qa8 h5 45. Qe4 hxg4+ 46. hxg4 Kg8 47. Qe7 Qc6+ 48. Kg3 Bf6 49. Nh6+ Kh8 50. Nf7+ Kg8 51. Ne5 Bxe5+ 52. Qxe5 Qc1 53. Qxd4 Qg1+ 54. Kf3 Qh1+ 55. Ke2 Qc1 56. Qe3 Qc2+ 57. Kf3 Qd1+ 58. Qe2 Qh1+ 59. Ke3 Qc1+ 60. Ke4 Qc6+ 61. Kf5 Kf7 62. Qa2+ Kg7 63. Qa7+ Kh6 64. Qf7 Qf3+ 65. Ke6 Qxg4+ 66. Qf5 Qb4 67. Qf6+ Kh5 68. d4 Qb6+ 69. Kf7 Qb7+ 70. Kg8 Kh4 71. Qf7 Qb8+ 72. Kg7 Qb2 73. Qf6 Qd2 74. Kg6 Qd3+ 75. Qf5 Qa6+ 76. Kh7 Qa7+ 77. Kh6 Qe7 78. d5 Qd6+ 79. Kg7 Qe7+ 80. Kg6 Qe8+ 81. Qf7 Qe4+ 82. Kh6 Qe2 83. d6 Qd1 84. Qg6 Qg4 85. d7 1-0

[Event "XIX Najdorf Memorial 2019"]
[Site "Warsaw"]
[Date "2019.07.09"]
[Round "4.20"]
[White "Martynyuk, Elizaveta"]
[Black "Bednarek, Sylwester"]
[Result "1-0"]
[ECO "C15"]
[WhiteElo "2125"]
[BlackElo "2291"]
[Annotator "NA"]
[PlyCount "81"]
[EventDate "2019.07.06"]
[EventType "swiss"]
[EventCountry "POL"]
[SourceTitle "playchess.com"]
[Source "ChessBase"]
[SourceQuality "1"]
[TimeControl "40/5400+30:1800+30"]

1. e4 e6 2. d4 d5 3. Nc3 Bb4 4. exd5 exd5 5. Bd3 Nc6 6. a3 Ba5 7. Nge2 Nce7 8. Bg5 f6 9. Bf4 Ng6 10. Bg3 N8e7 11. h4 Bxc3+ 12. Nxc3 c6 13. h5 Nf8 14. h6 g6 15. Qf3 Bf5 16. O-O-O Ne6 17. Rhe1 Qd7 18. Bh4 O-O 19. g4 Bxd3 20. Rxd3 g5 21. Bg3 Rf7 22. Qe2 Nf8 23. f4 gxf4 24. Bxf4 Neg6 25. Bg3 Re7 26. Qf3 Rxe1+ 27. Bxe1 Re8 28. Bg3 Qf7 29. Nd1 Ne6 30. Re3 Re7 31. c3 Ng5 32. Qf5 Ne4 33. Bh2 Qf8 34. c4 Qxh6 35. cxd5 Ng3 36. Bxg3 Rxe3 37. g5 Qh1 38. d6 Re8 39. d7 Rf8 40. Qe6+ Kg7 41. Bd6 1-0